[Event "Titled Tuesday Blitz April 18 Early 2023"]
[White "dDobravcan"]
[Black "Barwinska, Ewa"]
[BlackFideId "21833761"]
[WhiteElo "2162"]
[BlackElo "1908"]
[Result "0-1"]
[Round "08"]
[TimeControl "180+2"]
[Date "2023.04.18"]
[WhiteClock "0:00:01"]
[BlackClock "0:00:06"]

1. e4 {[%clk 0:03:00]}  c5 {[%clk 0:02:58]} 2. b4 {[%clk 0:03:00]}  cxb4 {[%clk 0:02:55]} 3. Bb2 {[%clk 0:02:59]}  Nc6 {[%clk 0:02:50]} 4. a3 {[%clk 0:02:51]}  d5 {[%clk 0:02:41]} 5. exd5 {[%clk 0:02:47]}  Qxd5 {[%clk 0:02:42]} 6. d4 {[%clk 0:02:45]}  Nf6 {[%clk 0:02:36]} 7. c4 {[%clk 0:02:43]}  bxc3 {[%clk 0:02:33]} 8. Nxc3 {[%clk 0:02:44]}  Qxd4 {[%clk 0:02:28]} 9. Nb5 {[%clk 0:02:35]}  Qe4+ {[%clk 0:02:02]} 10. Be2 {[%clk 0:02:32]}  Qf4 {[%clk 0:01:42]} 11. Nf3 {[%clk 0:02:23]}  Bd7 {[%clk 0:01:20]} 12. g3 {[%clk 0:02:01]}  Qb8 {[%clk 0:01:18]} 13. O-O {[%clk 0:01:57]}  a6 {[%clk 0:01:14]} 14. Nbd4 {[%clk 0:01:47]}  e6 {[%clk 0:01:13]} 15. Rb1 {[%clk 0:01:37]}  Be7 {[%clk 0:01:04]} 16. Nxc6 {[%clk 0:01:23]}  Bxc6 {[%clk 0:01:05]} 17. Ne5 {[%clk 0:01:22]}  Qd6 {[%clk 0:00:58]} 18. Nxc6 {[%clk 0:01:05]}  Qxd1 {[%clk 0:00:50]} 19. Rfxd1 {[%clk 0:01:04]}  bxc6 {[%clk 0:00:50]} 20. Bf3 {[%clk 0:01:04]}  Rc8 {[%clk 0:00:44]} 21. Be5 {[%clk 0:00:53]}  O-O {[%clk 0:00:39]} 22. Rb7 {[%clk 0:00:53]}  Bxa3 {[%clk 0:00:37]} 23. Ra7 {[%clk 0:00:42]}  c5 {[%clk 0:00:26]} 24. Rxa6 {[%clk 0:00:41]}  Bb4 {[%clk 0:00:26]} 25. Kg2 {[%clk 0:00:37]}  h6 {[%clk 0:00:25]} 26. h4 {[%clk 0:00:25]}  Rfd8 {[%clk 0:00:23]} 27. Rb1 {[%clk 0:00:17]}  Nd5 {[%clk 0:00:20]} 28. g4 {[%clk 0:00:14]}  f6 {[%clk 0:00:18]} 29. Ba1 {[%clk 0:00:12]}  Nc3 {[%clk 0:00:12]} 30. Bxc3 {[%clk 0:00:11]}  Bxc3 {[%clk 0:00:12]} 31. Be4 {[%clk 0:00:11]}  Re8 {[%clk 0:00:06]} 32. Bg6 {[%clk 0:00:09]}  Re7 {[%clk 0:00:06]} 33. h5 {[%clk 0:00:09]}  Bd4 {[%clk 0:00:06]} 34. Re1 {[%clk 0:00:04]}  c4 {[%clk 0:00:06]} 35. Rexe6 {[%clk 0:00:01]}  Rxe6 {[%clk 0:00:06]} 0-1


[Site "https://www.chess.com"]

[Event "Titled Tuesday Blitz April 18 Early 2023"]
[White "Quirke, Jeffrey"]
[Black "Vargas, Mauricio"]
[WhiteFideId "2013029"]
[BlackFideId "4404572"]
[WhiteElo "2234"]
[BlackElo "1998"]
[Result "1-0"]
[Round "08"]
[TimeControl "180+2"]
[Date "2023.04.18"]
[WhiteClock "0:00:52"]
[BlackClock "0:01:30"]

1. e4 {[%clk 0:03:00]}  d5 {[%clk 0:02:59]} 2. exd5 {[%clk 0:02:59]}  Qxd5 {[%clk 0:03:00]} 3. Nc3 {[%clk 0:02:58]}  Qa5 {[%clk 0:03:00]} 4. Nf3 {[%clk 0:02:54]}  c6 {[%clk 0:03:00]} 5. Bc4 {[%clk 0:02:54]}  Nf6 {[%clk 0:02:59]} 6. d3 {[%clk 0:02:54]}  Bg4 {[%clk 0:02:59]} 7. h3 {[%clk 0:02:54]}  Bh5 {[%clk 0:02:58]} 8. g4 {[%clk 0:02:51]}  Bg6 {[%clk 0:02:58]} 9. Bd2 {[%clk 0:02:40]}  Qc7 {[%clk 0:02:56]} 10. Qe2 {[%clk 0:02:39]}  e6 {[%clk 0:02:56]} 11. Ne5 {[%clk 0:02:37]}  Bd6 {[%clk 0:02:53]} 12. f4 {[%clk 0:02:36]}  Bxe5 {[%clk 0:02:41]} 13. fxe5 {[%clk 0:02:35]}  Nd5 {[%clk 0:02:41]} 14. h4 {[%clk 0:02:17]}  h6 {[%clk 0:02:37]} 15. h5 {[%clk 0:02:13]}  Bh7 {[%clk 0:02:37]} 16. O-O-O {[%clk 0:02:14]}  O-O {[%clk 0:02:36]} 17. g5 {[%clk 0:02:09]}  hxg5 {[%clk 0:02:31]} 18. Bxg5 {[%clk 0:02:01]}  Nxc3 {[%clk 0:02:31]} 19. bxc3 {[%clk 0:02:01]}  Nd7 {[%clk 0:02:29]} 20. d4 {[%clk 0:01:55]}  a5 {[%clk 0:02:18]} 21. Rdg1 {[%clk 0:01:54]}  b5 {[%clk 0:02:15]} 22. Bd3 {[%clk 0:01:37]}  c5 {[%clk 0:02:01]} 23. Be7 {[%clk 0:01:32]}  Rfb8 {[%clk 0:01:56]} 24. Rxg7+ {[%clk 0:01:24]}  Kxg7 {[%clk 0:01:54]} 25. Rg1+ {[%clk 0:01:24]}  Kh8 {[%clk 0:01:53]} 26. Bxh7 {[%clk 0:00:59]}  Kxh7 {[%clk 0:01:53]} 27. Qe4+ {[%clk 0:00:58]}  Kh8 {[%clk 0:01:53]} 28. Qf4 {[%clk 0:00:56]}  Kh7 {[%clk 0:01:39]} 29. Qxf7+ {[%clk 0:00:54]}  Kh6 {[%clk 0:01:30]} 30. Qg6# {[%clk 0:00:52]} 1-0


[Site "https://www.chess.com"]

[Event "Titled Tuesday Blitz April 18 Early 2023"]
[White "Larina, Maria"]
[Black "Mihajlovskij"]
[WhiteFideId "24113182"]
[WhiteElo "1848"]
[BlackElo "2002"]
[Result "0-1"]
[Round "08"]
[TimeControl "180+2"]
[Date "2023.04.18"]
[WhiteClock "0:00:09"]
[BlackClock "0:02:20"]

1. e4 {[%clk 0:03:00]}  d5 {[%clk 0:03:00]} 2. exd5 {[%clk 0:02:58]}  Qxd5 {[%clk 0:03:01]} 3. Nc3 {[%clk 0:02:58]}  Qe5+ {[%clk 0:03:01]} 4. Be2 {[%clk 0:02:56]}  Bg4 {[%clk 0:03:01]} 5. d4 {[%clk 0:02:43]}  Bxe2 {[%clk 0:03:00]} 6. Ngxe2 {[%clk 0:02:37]}  Qa5 {[%clk 0:03:00]} 7. O-O {[%clk 0:02:35]}  Nf6 {[%clk 0:03:00]} 8. a3 {[%clk 0:02:16]}  Nc6 {[%clk 0:02:59]} 9. Bd2 {[%clk 0:02:09]}  O-O-O {[%clk 0:02:56]} 10. b4 {[%clk 0:01:49]}  Qh5 {[%clk 0:02:56]} 11. b5 {[%clk 0:01:22]}  Nxd4 {[%clk 0:02:52]} 12. Nxd4 {[%clk 0:01:22]}  Qxd1 {[%clk 0:02:48]} 13. Rfxd1 {[%clk 0:01:20]}  Rxd4 {[%clk 0:02:48]} 14. Be3 {[%clk 0:01:18]}  Rxd1+ {[%clk 0:02:48]} 15. Rxd1 {[%clk 0:01:17]}  b6 {[%clk 0:02:48]} 16. a4 {[%clk 0:01:06]}  e6 {[%clk 0:02:45]} 17. a5 {[%clk 0:00:57]}  Bd6 {[%clk 0:02:44]} 18. axb6 {[%clk 0:00:51]}  axb6 {[%clk 0:02:43]} 19. f3 {[%clk 0:00:48]}  Rd8 {[%clk 0:02:41]} 20. Rd3 {[%clk 0:00:32]}  Kb7 {[%clk 0:02:35]} 21. g3 {[%clk 0:00:27]}  Ra8 {[%clk 0:02:35]} 22. Ne4 {[%clk 0:00:20]}  Nxe4 {[%clk 0:02:33]} 23. fxe4 {[%clk 0:00:21]}  Ra4 {[%clk 0:02:28]} 24. Bd4 {[%clk 0:00:13]}  e5 {[%clk 0:02:26]} 25. Bf2 {[%clk 0:00:09]}  Rxe4 {[%clk 0:02:26]} 26. Re3 {[%clk 0:00:09]}  Rb4 {[%clk 0:02:20]} 0-1


[Site "https://www.chess.com"]

[Event "Titled Tuesday Blitz April 18 Early 2023"]
[White "Kriti Mayur Patel"]
[Black "Barria Santos, Jose Guilherme"]
[WhiteFideId "35061780"]
[BlackFideId "1939300"]
[WhiteElo "1306"]
[BlackElo "2266"]
[Result "1-0"]
[Round "08"]
[TimeControl "180+2"]
[Date "2023.04.18"]
[WhiteClock "0:01:23"]
[BlackClock "0:00:59"]

1. e4 {[%clk 0:03:00]}  c5 {[%clk 0:03:00]} 2. d4 {[%clk 0:03:00]}  cxd4 {[%clk 0:03:00]} 3. c3 {[%clk 0:03:01]}  Nf6 {[%clk 0:03:00]} 4. e5 {[%clk 0:03:01]}  Nd5 {[%clk 0:03:00]} 5. Bc4 {[%clk 0:03:01]}  Nb6 {[%clk 0:03:00]} 6. Bb3 {[%clk 0:03:02]}  e6 {[%clk 0:03:01]} 7. Nf3 {[%clk 0:03:02]}  d6 {[%clk 0:03:01]} 8. exd6 {[%clk 0:03:01]}  Bxd6 {[%clk 0:03:00]} 9. O-O {[%clk 0:03:01]}  O-O {[%clk 0:03:00]} 10. h3 {[%clk 0:02:59]}  Nc6 {[%clk 0:03:00]} 11. Bg5 {[%clk 0:02:59]}  Be7 {[%clk 0:02:58]} 12. Bxe7 {[%clk 0:02:58]}  Qxe7 {[%clk 0:02:58]} 13. cxd4 {[%clk 0:02:58]}  Rd8 {[%clk 0:02:58]} 14. Nc3 {[%clk 0:02:58]}  Nb4 {[%clk 0:02:24]} 15. Re1 {[%clk 0:02:54]}  N6d5 {[%clk 0:02:24]} 16. Nxd5 {[%clk 0:02:54]}  Nxd5 {[%clk 0:02:25]} 17. Rc1 {[%clk 0:02:50]}  Qd6 {[%clk 0:02:17]} 18. Ne5 {[%clk 0:02:47]}  Bd7 {[%clk 0:02:13]} 19. Nc4 {[%clk 0:02:45]}  Qf4 {[%clk 0:02:06]} 20. Qd3 {[%clk 0:02:33]}  Bc6 {[%clk 0:02:01]} 21. Bc2 {[%clk 0:02:28]}  Nf6 {[%clk 0:01:59]} 22. Bb1 {[%clk 0:02:15]}  Rxd4 {[%clk 0:01:57]} 23. Qc2 {[%clk 0:02:15]}  Qg5 {[%clk 0:01:41]} 24. Ne3 {[%clk 0:02:13]}  Be4 {[%clk 0:01:34]} 25. Qc3 {[%clk 0:02:07]}  Rdd8 {[%clk 0:01:27]} 26. Bxe4 {[%clk 0:02:06]}  Nxe4 {[%clk 0:01:26]} 27. Qc7 {[%clk 0:02:06]}  Qb5 {[%clk 0:01:15]} 28. Nc4 {[%clk 0:01:59]}  h6 {[%clk 0:01:14]} 29. Rxe4 {[%clk 0:01:57]}  Rac8 {[%clk 0:01:14]} 30. Qf4 {[%clk 0:01:52]}  Qd5 {[%clk 0:01:00]} 31. Kh2 {[%clk 0:01:38]}  b5 {[%clk 0:00:59]} 32. Ne5 {[%clk 0:01:36]}  Qxa2 {[%clk 0:00:59]} 33. Qxf7+ {[%clk 0:01:33]}  Kh8 {[%clk 0:00:59]} 34. Rg4 {[%clk 0:01:27]}  Rg8 {[%clk 0:00:59]} 35. Rxc8 {[%clk 0:01:23]} 1-0


[Site "https://www.chess.com"]

[Event "Titled Tuesday Blitz April 18 Early 2023"]
[White "Winkels, Marcel"]
[Black "Prado, Alexandra"]
[WhiteFideId "1003887"]
[BlackFideId "3301346"]
[WhiteElo "1900"]
[BlackElo "1759"]
[Result "0-1"]
[Round "08"]
[TimeControl "180+2"]
[Date "2023.04.18"]
[WhiteClock "0:00:05"]
[BlackClock "0:00:06"]

1. d4 {[%clk 0:03:00]}  Nf6 {[%clk 0:02:58]} 2. Nc3 {[%clk 0:02:59]}  g6 {[%clk 0:02:58]} 3. Bf4 {[%clk 0:03:00]}  Bg7 {[%clk 0:02:55]} 4. e3 {[%clk 0:03:00]}  O-O {[%clk 0:02:55]} 5. h4 {[%clk 0:03:00]}  h6 {[%clk 0:02:48]} 6. Nf3 {[%clk 0:02:50]}  d6 {[%clk 0:02:42]} 7. Bd3 {[%clk 0:02:39]}  Nc6 {[%clk 0:02:39]} 8. Qd2 {[%clk 0:02:36]}  a6 {[%clk 0:02:14]} 9. e4 {[%clk 0:02:33]}  Ng4 {[%clk 0:01:48]} 10. O-O-O {[%clk 0:02:25]}  Nxd4 {[%clk 0:01:27]} 11. Nxd4 {[%clk 0:02:16]}  Bxd4 {[%clk 0:01:28]} 12. Bxh6 {[%clk 0:02:13]}  Nxh6 {[%clk 0:01:22]} 13. Qxh6 {[%clk 0:02:12]}  Bg7 {[%clk 0:01:23]} 14. Qe3 {[%clk 0:02:06]}  b5 {[%clk 0:01:13]} 15. h5 {[%clk 0:02:06]}  gxh5 {[%clk 0:01:12]} 16. f3 {[%clk 0:01:48]}  c5 {[%clk 0:00:52]} 17. Nd5 {[%clk 0:01:39]}  e6 {[%clk 0:00:47]} 18. Nf4 {[%clk 0:01:36]}  Qf6 {[%clk 0:00:47]} 19. c3 {[%clk 0:01:28]}  Bh6 {[%clk 0:00:42]} 20. g3 {[%clk 0:01:26]}  e5 {[%clk 0:00:38]} 21. Rxh5 {[%clk 0:00:56]}  exf4 {[%clk 0:00:21]} 22. Qg1 {[%clk 0:00:51]}  fxg3+ {[%clk 0:00:19]} 23. Kb1 {[%clk 0:00:52]}  Re8 {[%clk 0:00:17]} 24. Qxg3+ {[%clk 0:00:49]}  Kf8 {[%clk 0:00:17]} 25. Rdh1 {[%clk 0:00:47]}  Bf4 {[%clk 0:00:16]} 26. Qe1 {[%clk 0:00:38]}  Be6 {[%clk 0:00:15]} 27. Bc2 {[%clk 0:00:29]}  Ke7 {[%clk 0:00:15]} 28. Bb3 {[%clk 0:00:25]}  Rh8 {[%clk 0:00:15]} 29. Bxe6 {[%clk 0:00:19]}  fxe6 {[%clk 0:00:13]} 30. Rh7+ {[%clk 0:00:18]}  Rxh7 {[%clk 0:00:09]} 31. Rxh7+ {[%clk 0:00:17]}  Kd8 {[%clk 0:00:09]} 32. Qh1 {[%clk 0:00:12]}  Rc8 {[%clk 0:00:08]} 33. Rh8+ {[%clk 0:00:09]}  Kc7 {[%clk 0:00:08]} 34. Rxc8+ {[%clk 0:00:08]}  Kxc8 {[%clk 0:00:08]} 35. Qh7 {[%clk 0:00:07]}  Be5 {[%clk 0:00:06]} 36. Qg8+ {[%clk 0:00:06]}  Kc7 {[%clk 0:00:06]} 37. Qa8 {[%clk 0:00:06]}  Qxf3 {[%clk 0:00:05]} 38. Qa7+ {[%clk 0:00:05]}  Kd8 {[%clk 0:00:06]} 39. Qb6+ {[%clk 0:00:05]}  Ke7 {[%clk 0:00:06]} 0-1


[Site "https://www.chess.com"]

[Event "Titled Tuesday Blitz April 18 Early 2023"]
[White "Semenova, Alina"]
[Black "Sandholm, Klas"]
[WhiteFideId "24113875"]
[BlackFideId "510203"]
[WhiteElo "1833"]
[BlackElo "2098"]
[Result "0-1"]
[Round "08"]
[TimeControl "180+2"]
[Date "2023.04.18"]
[WhiteClock "0:00:45"]
[BlackClock "0:00:45"]

1. e4 {[%clk 0:02:59]}  e5 {[%clk 0:02:59]} 2. Nf3 {[%clk 0:02:58]}  d5 {[%clk 0:02:59]} 3. exd5 {[%clk 0:02:55]}  e4 {[%clk 0:03:00]} 4. Qe2 {[%clk 0:02:52]}  f5 {[%clk 0:03:00]} 5. Nd4 {[%clk 0:02:49]}  Nf6 {[%clk 0:03:01]} 6. Qb5+ {[%clk 0:02:43]}  c6 {[%clk 0:02:39]} 7. dxc6 {[%clk 0:02:39]}  bxc6 {[%clk 0:02:37]} 8. Qe5+ {[%clk 0:02:38]}  Qe7 {[%clk 0:02:33]} 9. Qxe7+ {[%clk 0:02:23]}  Bxe7 {[%clk 0:02:34]} 10. Bc4 {[%clk 0:02:23]}  Bc5 {[%clk 0:02:22]} 11. Nb3 {[%clk 0:02:12]}  Bb6 {[%clk 0:02:21]} 12. O-O {[%clk 0:02:12]}  Nbd7 {[%clk 0:02:21]} 13. d4 {[%clk 0:02:09]}  Nd5 {[%clk 0:02:13]} 14. c3 {[%clk 0:01:51]}  O-O {[%clk 0:02:09]} 15. h3 {[%clk 0:01:51]}  Kh8 {[%clk 0:02:09]} 16. Bg5 {[%clk 0:01:51]}  h6 {[%clk 0:02:08]} 17. Bh4 {[%clk 0:01:51]}  g5 {[%clk 0:02:07]} 18. Bg3 {[%clk 0:01:51]}  f4 {[%clk 0:02:07]} 19. Bh2 {[%clk 0:01:51]}  N7f6 {[%clk 0:02:05]} 20. N1d2 {[%clk 0:01:51]}  Bf5 {[%clk 0:02:03]} 21. Rfe1 {[%clk 0:01:51]}  Rfe8 {[%clk 0:02:01]} 22. a4 {[%clk 0:01:49]}  a5 {[%clk 0:01:59]} 23. Re2 {[%clk 0:01:46]}  Kg7 {[%clk 0:01:58]} 24. Rae1 {[%clk 0:01:47]}  Rad8 {[%clk 0:01:58]} 25. Nf1 {[%clk 0:01:38]}  Bg6 {[%clk 0:01:51]} 26. Nbd2 {[%clk 0:01:31]}  Bc7 {[%clk 0:01:43]} 27. Ba6 {[%clk 0:01:27]}  Rb8 {[%clk 0:01:39]} 28. c4 {[%clk 0:01:23]}  Nb4 {[%clk 0:01:37]} 29. Bb5 {[%clk 0:01:12]}  cxb5 {[%clk 0:01:37]} 30. axb5 {[%clk 0:01:12]}  Nd3 {[%clk 0:01:36]} 31. Rd1 {[%clk 0:01:09]}  Nxb2 {[%clk 0:01:34]} 32. Ra1 {[%clk 0:01:09]}  Nd3 {[%clk 0:01:25]} 33. Nb3 {[%clk 0:01:08]}  Ra8 {[%clk 0:01:14]} 34. c5 {[%clk 0:01:06]}  Nd5 {[%clk 0:01:14]} 35. b6 {[%clk 0:01:05]}  Bd8 {[%clk 0:01:10]} 36. Rxa5 {[%clk 0:01:03]}  Rxa5 {[%clk 0:00:59]} 37. Nxa5 {[%clk 0:01:02]}  Nxb6 {[%clk 0:00:58]} 38. cxb6 {[%clk 0:01:01]}  Bxb6 {[%clk 0:00:59]} 39. Nc4 {[%clk 0:01:01]}  Bxd4 {[%clk 0:00:57]} 40. Nd6 {[%clk 0:01:01]}  Re6 {[%clk 0:00:55]} 41. Nb5 {[%clk 0:01:00]}  Bb6 {[%clk 0:00:51]} 42. Nd2 {[%clk 0:00:58]}  Nxf2 {[%clk 0:00:49]} 43. Rxf2 {[%clk 0:00:57]}  Bxf2+ {[%clk 0:00:48]} 44. Kxf2 {[%clk 0:00:57]}  e3+ {[%clk 0:00:49]} 45. Ke2 {[%clk 0:00:58]}  exd2+ {[%clk 0:00:49]} 46. Kxd2 {[%clk 0:00:58]}  Rb6 {[%clk 0:00:47]} 47. Nd4 {[%clk 0:00:56]}  Rb2+ {[%clk 0:00:47]} 48. Ke1 {[%clk 0:00:51]}  Rxg2 {[%clk 0:00:48]} 49. Nf3 {[%clk 0:00:51]}  Be4 {[%clk 0:00:45]} 50. Kf1 {[%clk 0:00:45]}  Bxf3 {[%clk 0:00:45]} 0-1


[Site "https://www.chess.com"]

[Event "Titled Tuesday Blitz April 18 Early 2023"]
[White "Lukovic, Vladimir"]
[Black "Thiel, Thomas"]
[WhiteFideId "942952"]
[BlackFideId "4615964"]
[WhiteElo "2391"]
[BlackElo "2162"]
[Result "1-0"]
[Round "08"]
[TimeControl "180+2"]
[Date "2023.04.18"]
[WhiteClock "0:00:17"]
[BlackClock "0:00:20"]

1. e4 {[%clk 0:02:55]}  d5 {[%clk 0:02:57]} 2. exd5 {[%clk 0:02:54]}  Nf6 {[%clk 0:02:57]} 3. d4 {[%clk 0:02:52]}  Nxd5 {[%clk 0:02:57]} 4. c4 {[%clk 0:02:51]}  Nb6 {[%clk 0:02:56]} 5. Nf3 {[%clk 0:02:51]}  g6 {[%clk 0:02:52]} 6. Nc3 {[%clk 0:02:50]}  Bg7 {[%clk 0:02:52]} 7. c5 {[%clk 0:02:51]}  Nd5 {[%clk 0:02:50]} 8. Bc4 {[%clk 0:02:51]}  Nxc3 {[%clk 0:02:49]} 9. bxc3 {[%clk 0:02:52]}  O-O {[%clk 0:02:48]} 10. O-O {[%clk 0:02:51]}  Nc6 {[%clk 0:02:48]} 11. Re1 {[%clk 0:02:48]}  Bg4 {[%clk 0:02:47]} 12. h3 {[%clk 0:02:47]}  Bxf3 {[%clk 0:02:44]} 13. Qxf3 {[%clk 0:02:48]}  Nxd4 {[%clk 0:02:43]} 14. Qe4 {[%clk 0:02:26]}  Nc6 {[%clk 0:02:32]} 15. Bb2 {[%clk 0:02:24]}  Qd7 {[%clk 0:02:23]} 16. Bd5 {[%clk 0:02:11]}  e6 {[%clk 0:02:17]} 17. Bb3 {[%clk 0:02:08]}  Qe7 {[%clk 0:02:13]} 18. Qe3 {[%clk 0:02:06]}  Rfd8 {[%clk 0:02:10]} 19. Rac1 {[%clk 0:01:55]}  Bf8 {[%clk 0:02:04]} 20. Ba3 {[%clk 0:01:53]}  b6 {[%clk 0:02:03]} 21. Ba4 {[%clk 0:01:42]}  Na5 {[%clk 0:02:01]} 22. Bb4 {[%clk 0:01:40]}  Nb7 {[%clk 0:01:40]} 23. Bc6 {[%clk 0:01:27]}  bxc5 {[%clk 0:01:40]} 24. Bxb7 {[%clk 0:01:25]}  Rab8 {[%clk 0:01:39]} 25. Bf3 {[%clk 0:00:56]}  cxb4 {[%clk 0:01:37]} 26. Qxa7 {[%clk 0:00:56]}  Qc5 {[%clk 0:01:28]} 27. Qxc5 {[%clk 0:00:52]}  Bxc5 {[%clk 0:01:28]} 28. cxb4 {[%clk 0:00:52]}  Bxb4 {[%clk 0:01:22]} 29. Re2 {[%clk 0:00:53]}  c5 {[%clk 0:01:19]} 30. a4 {[%clk 0:00:53]}  Rd4 {[%clk 0:01:15]} 31. Ra2 {[%clk 0:00:50]}  Rc8 {[%clk 0:00:42]} 32. a5 {[%clk 0:00:49]}  Rd2 {[%clk 0:00:42]} 33. Rca1 {[%clk 0:00:41]}  c4 {[%clk 0:00:38]} 34. Rxd2 {[%clk 0:00:32]}  Bxd2 {[%clk 0:00:37]} 35. a6 {[%clk 0:00:32]}  Bc3 {[%clk 0:00:30]} 36. Rd1 {[%clk 0:00:26]}  Bb2 {[%clk 0:00:22]} 37. Bb7 {[%clk 0:00:20]}  c3 {[%clk 0:00:21]} 38. Bxc8 {[%clk 0:00:17]}  c2 {[%clk 0:00:21]} 39. Rf1 {[%clk 0:00:18]}  Bd4 {[%clk 0:00:20]} 40. Rc1 {[%clk 0:00:17]} 1-0


[Site "https://www.chess.com"]

[Event "Titled Tuesday Blitz April 18 Early 2023"]
[White "Fabris, Alberto"]
[Black "Santos Flores, Alberto"]
[WhiteFideId "801348"]
[BlackFideId "3601234"]
[WhiteElo "2102"]
[BlackElo "2235"]
[Result "0-1"]
[Round "08"]
[TimeControl "180+2"]
[Date "2023.04.18"]
[WhiteClock "0:00:06"]
[BlackClock "0:01:57"]

1. e4 {[%clk 0:03:00]}  c5 {[%clk 0:02:59]} 2. Nf3 {[%clk 0:03:00]}  Nc6 {[%clk 0:03:00]} 3. Bb5 {[%clk 0:03:00]}  g6 {[%clk 0:03:00]} 4. O-O {[%clk 0:03:00]}  Bg7 {[%clk 0:03:00]} 5. Re1 {[%clk 0:03:01]}  Nf6 {[%clk 0:03:00]} 6. c3 {[%clk 0:02:58]}  O-O {[%clk 0:03:00]} 7. d4 {[%clk 0:02:55]}  cxd4 {[%clk 0:03:01]} 8. cxd4 {[%clk 0:02:55]}  d5 {[%clk 0:03:01]} 9. e5 {[%clk 0:02:55]}  Ne4 {[%clk 0:03:02]} 10. Nc3 {[%clk 0:02:55]}  Nxc3 {[%clk 0:03:03]} 11. bxc3 {[%clk 0:02:55]}  Bg4 {[%clk 0:03:03]} 12. h3 {[%clk 0:02:46]}  Bxf3 {[%clk 0:03:01]} 13. Qxf3 {[%clk 0:02:46]}  e6 {[%clk 0:03:01]} 14. Bf4 {[%clk 0:02:41]}  Rc8 {[%clk 0:03:01]} 15. Rac1 {[%clk 0:02:38]}  a6 {[%clk 0:02:59]} 16. Bf1 {[%clk 0:02:36]}  Na5 {[%clk 0:02:59]} 17. Qe3 {[%clk 0:02:22]}  Nc4 {[%clk 0:02:58]} 18. Bxc4 {[%clk 0:02:21]}  Rxc4 {[%clk 0:02:59]} 19. Bh6 {[%clk 0:02:20]}  Qc7 {[%clk 0:02:59]} 20. Bxg7 {[%clk 0:02:15]}  Kxg7 {[%clk 0:03:00]} 21. h4 {[%clk 0:02:12]}  h5 {[%clk 0:02:57]} 22. Qf3 {[%clk 0:02:07]}  Rc8 {[%clk 0:02:55]} 23. Qf6+ {[%clk 0:01:52]}  Kg8 {[%clk 0:02:55]} 24. Re3 {[%clk 0:01:50]}  Rxd4 {[%clk 0:02:52]} 25. cxd4 {[%clk 0:01:46]}  Qxc1+ {[%clk 0:02:52]} 26. Kh2 {[%clk 0:01:45]}  Qc7 {[%clk 0:02:44]} 27. g4 {[%clk 0:01:39]}  Qd8 {[%clk 0:02:44]} 28. gxh5 {[%clk 0:01:33]}  Qxf6 {[%clk 0:02:44]} 29. exf6 {[%clk 0:01:33]}  gxh5 {[%clk 0:02:44]} 30. Re5 {[%clk 0:01:30]}  Rc4 {[%clk 0:02:42]} 31. Rxh5 {[%clk 0:01:22]}  Rxd4 {[%clk 0:02:41]} 32. Rg5+ {[%clk 0:01:21]}  Kf8 {[%clk 0:02:41]} 33. Rh5 {[%clk 0:01:20]}  Ke8 {[%clk 0:02:40]} 34. Rh8+ {[%clk 0:01:20]}  Kd7 {[%clk 0:02:40]} 35. Rb8 {[%clk 0:00:54]}  Rxh4+ {[%clk 0:02:30]} 36. Kg3 {[%clk 0:00:53]}  Rh7 {[%clk 0:02:25]} 37. Rxb7+ {[%clk 0:00:52]}  Kc6 {[%clk 0:02:26]} 38. Ra7 {[%clk 0:00:49]}  Kb5 {[%clk 0:02:24]} 39. Rb7+ {[%clk 0:00:47]}  Kc4 {[%clk 0:02:23]} 40. Kf4 {[%clk 0:00:47]}  Kd4 {[%clk 0:02:12]} 41. Rb4+ {[%clk 0:00:44]}  Kc5 {[%clk 0:02:12]} 42. Ra4 {[%clk 0:00:40]}  Rh5 {[%clk 0:02:10]} 43. Rxa6 {[%clk 0:00:28]}  Rf5+ {[%clk 0:02:09]} 44. Ke3 {[%clk 0:00:25]}  Rxf6 {[%clk 0:02:08]} 45. Ra7 {[%clk 0:00:20]}  d4+ {[%clk 0:02:00]} 46. Ke2 {[%clk 0:00:19]}  e5 {[%clk 0:02:00]} 47. Re7 {[%clk 0:00:17]}  Kd5 {[%clk 0:01:59]} 48. Rd7+ {[%clk 0:00:15]}  Ke4 {[%clk 0:01:58]} 49. Rd8 {[%clk 0:00:10]}  Ra6 {[%clk 0:01:58]} 50. f3+ {[%clk 0:00:09]}  Kf5 {[%clk 0:01:58]} 51. Kd3 {[%clk 0:00:07]}  Ra3+ {[%clk 0:01:56]} 52. Kc4 {[%clk 0:00:06]}  Rxa2 {[%clk 0:01:57]} 0-1


[Site "https://www.chess.com"]

[Event "Titled Tuesday Blitz April 18 Early 2023"]
[White "Kotepalli, Sai Nirupama"]
[Black "Quispe Santacruz, Javier"]
[WhiteFideId "5039444"]
[BlackFideId "3800920"]
[WhiteElo "2316"]
[BlackElo "1875"]
[Result "1-0"]
[Round "08"]
[TimeControl "180+2"]
[Date "2023.04.18"]
[WhiteClock "0:00:07"]
[BlackClock "0:00:02"]

1. e4 {[%clk 0:00:05]}  c5 {[%clk 0:00:13]} 2. d3 {[%clk 0:00:05]}  Nc6 {[%clk 0:00:12]} 3. Nf3 {[%clk 0:00:06]}  g6 {[%clk 0:00:13]} 4. g3 {[%clk 0:00:07]}  Bg7 {[%clk 0:00:12]} 5. Bg2 {[%clk 0:00:08]}  d6 {[%clk 0:00:13]} 6. O-O {[%clk 0:00:08]}  Nf6 {[%clk 0:00:13]} 7. c3 {[%clk 0:00:09]}  O-O {[%clk 0:00:13]} 8. Qe2 {[%clk 0:00:10]}  Rb8 {[%clk 0:00:13]} 9. Nbd2 {[%clk 0:00:10]}  b5 {[%clk 0:00:13]} 10. a3 {[%clk 0:00:11]}  b4 {[%clk 0:00:13]} 11. axb4 {[%clk 0:00:11]}  cxb4 {[%clk 0:00:14]} 12. Re1 {[%clk 0:00:11]}  bxc3 {[%clk 0:00:14]} 13. bxc3 {[%clk 0:00:11]}  Qc7 {[%clk 0:00:14]} 14. d4 {[%clk 0:00:12]}  e5 {[%clk 0:00:14]} 15. d5 {[%clk 0:00:11]}  Ne7 {[%clk 0:00:13]} 16. c4 {[%clk 0:00:12]}  Bg4 {[%clk 0:00:12]} 17. Ba3 {[%clk 0:00:12]}  Bxf3 {[%clk 0:00:11]} 18. Bxf3 {[%clk 0:00:12]}  Nd7 {[%clk 0:00:11]} 19. Reb1 {[%clk 0:00:11]}  Nc5 {[%clk 0:00:11]} 20. Rb5 {[%clk 0:00:10]}  a6 {[%clk 0:00:10]} 21. Rxb8 {[%clk 0:00:09]}  Rxb8 {[%clk 0:00:11]} 22. Qe3 {[%clk 0:00:08]}  f5 {[%clk 0:00:11]} 23. Bxc5 {[%clk 0:00:08]}  dxc5 {[%clk 0:00:08]} 24. Rxa6 {[%clk 0:00:08]}  fxe4 {[%clk 0:00:06]} 25. Nxe4 {[%clk 0:00:08]}  Nf5 {[%clk 0:00:06]} 26. Qa3 {[%clk 0:00:07]}  Bf8 {[%clk 0:00:04]} 27. d6 {[%clk 0:00:06]}  Qd7 {[%clk 0:00:03]} 28. Nf6+ {[%clk 0:00:06]}  Kh8 {[%clk 0:00:01]} 29. Nxd7 {[%clk 0:00:07]}  Nd4 {[%clk 0:00:02]} 30. Nxb8 {[%clk 0:00:07]} 1-0


[Site "https://www.chess.com"]